fUST/lending_fUST_20260520
["ID","MTS","AMOUNT","RATE_DAILY","PERIOD"]
[422672968,1779232238000,-485.143,8.046e-05,2]
[422672970,1779232238000,-536.9554727,8.088e-05,2]
[422672966,1779232238000,-443.0,8.046e-05,2]
[422672982,1779232238000,-218.29,8.19e-05,2]
[422672987,1779232238000,-23366.15523517,8.212e-05,2]
[422672976,1779232238000,-19539.39529775,8.112e-05,2]
[422672985,1779232238000,-2101.5312719,8.212e-05,2]
[422673339,1779232243000,-152.0,8.007e-05,7]
[422673340,1779232243000,-15218.1178605,8.212e-05,2]
[422673349,1779232247000,-3953.85,8.212e-05,2]
[422673372,1779232990000,3455.0,0.00012,90]
[422673371,1779232990000,211.66998172,0.00012,90]
[422673373,1779232990000,290.34965258,0.00012,90]
[422673401,1779233431000,-44.21143951,8.044e-05,2]
[422673402,1779233431000,-350.65486049,8.045e-05,2]
[422673400,1779233431000,-1155.78856049,8.044e-05,2]
[422673397,1779233431000,-500.0,7.72e-05,2]
[422673399,1779233431000,-508.78099399,7.802e-05,2]
[422673463,1779233437000,-22.43014817,8.11e-05,2]
[422673456,1779233437000,-485.143,8.045e-05,2]
[422673461,1779233437000,-300.0,8.109e-05,2]
[422673458,1779233437000,-742.0,8.045e-05,2]
[422673454,1779233437000,-92.34513951,8.045e-05,2]
[422673459,1779233437000,-185.0,8.045e-05,2]
[422673505,1779233438000,-268.60112864,8.217e-05,2]
[422673507,1779233438000,-500.0,8.217e-05,2]
[422673509,1779233438000,-500.0,8.217e-05,2]
[422673511,1779233438000,-500.0,8.217e-05,2]
[422673513,1779233438000,-500.0,8.217e-05,2]
[422673517,1779233438000,-561.07236869,8.217e-05,2]
[422673515,1779233438000,-596.19161261,8.217e-05,2]
[422673525,1779233438000,-500.0,8.217e-05,2]
[422673519,1779233438000,-500.0,8.217e-05,2]
[422673503,1779233438000,-500.0,8.217e-05,2]
[422673521,1779233438000,-500.0,8.217e-05,2]
[422673527,1779233438000,-500.0,8.217e-05,2]
[422673531,1779233438000,-245.52879096,8.217e-05,2]
[422673492,1779233438000,-500.0,8.217e-05,2]
[422673477,1779233438000,-691.87269759,8.11e-05,2]
[422673490,1779233438000,-40869.6081501,8.169e-05,2]
[422673499,1779233438000,-500.0,8.217e-05,2]
[422673494,1779233438000,-500.0,8.217e-05,2]
[422673497,1779233438000,-500.0,8.217e-05,2]
[422673489,1779233438000,-1576.1484539,8.169e-05,2]
[422673487,1779233438000,-177.759,8.168e-05,2]
[422673485,1779233438000,-519.60015081,8.11e-05,2]
[422673483,1779233438000,-6473.68254371,8.11e-05,2]
[422673479,1779233438000,-2909.48692373,8.11e-05,2]
[422673481,1779233438000,-735.60459863,8.11e-05,2]
[422673475,1779233438000,-928.16797902,8.11e-05,2]
[422673473,1779233438000,-382.58002098,8.11e-05,2]
[422673523,1779233438000,-500.0,8.217e-05,2]
[422673501,1779233438000,-500.0,8.217e-05,2]
[422673529,1779233438000,-500.0,8.217e-05,2]
[422673554,1779233438000,-500.0,8.217e-05,2]
[422673533,1779233438000,-168.9517238,8.217e-05,2]
[422673535,1779233438000,-500.0,8.217e-05,2]
[422673594,1779233438000,-500.0,8.217e-05,2]
[422673592,1779233438000,-500.0,8.217e-05,2]
[422673599,1779233438000,-400.0,8.217e-05,2]
[422673587,1779233438000,-500.0,8.217e-05,2]
[422673597,1779233438000,-500.0,8.217e-05,2]
[422673590,1779233438000,-500.0,8.217e-05,2]
[422673585,1779233438000,-500.0,8.217e-05,2]
[422673567,1779233438000,-500.0,8.217e-05,2]
[422673583,1779233438000,-500.0,8.217e-05,2]
[422673571,1779233438000,-500.0,8.217e-05,2]
[422673569,1779233438000,-500.0,8.217e-05,2]
[422673575,1779233438000,-500.0,8.217e-05,2]
[422673577,1779233438000,-500.0,8.217e-05,2]
[422673595,1779233438000,-500.0,8.217e-05,2]
[422673579,1779233438000,-500.0,8.217e-05,2]
[422673539,1779233438000,-500.0,8.217e-05,2]
[422673564,1779233438000,-500.0,8.217e-05,2]
[422673537,1779233438000,-292.70063837,8.217e-05,2]
[422673541,1779233438000,-500.0,8.217e-05,2]
[422673551,1779233438000,-202.11782995,8.217e-05,2]
[422673545,1779233438000,-500.0,8.217e-05,2]
[422673543,1779233438000,-500.0,8.217e-05,2]
[422673547,1779233438000,-500.0,8.217e-05,2]
[422673556,1779233438000,-500.0,8.217e-05,2]
[422673549,1779233438000,-500.0,8.217e-05,2]
[422673573,1779233438000,-500.0,8.217e-05,2]
[422673581,1779233438000,-454.75293366,8.217e-05,2]
[422673562,1779233438000,-500.0,8.217e-05,2]
[422673601,1779233438000,-145006.67669924,8.218e-05,2]
[422673820,1779233440000,-408.325,8.218e-05,2]
[422674203,1779233446000,-500.0,8.219e-05,2]
[422674207,1779233446000,-500.0,8.219e-05,2]
[422674214,1779233446000,-631.36,8.219e-05,2]
[422674212,1779233446000,-623.59567337,8.219e-05,2]
[422674209,1779233446000,-500.0,8.219e-05,2]
[422674210,1779233446000,-500.0,8.219e-05,2]
[422674211,1779233446000,-500.0,8.219e-05,2]
[422674205,1779233446000,-500.0,8.219e-05,2]
[422674218,1779233446000,-500.0,8.219e-05,2]
[422674206,1779233446000,-500.0,8.219e-05,2]
[422674216,1779233446000,-500.0,8.219e-05,2]
[422674227,1779233446000,-500.0,8.219e-05,2]
[422674219,1779233446000,-500.0,8.219e-05,2]
[422674215,1779233446000,-504.92,8.219e-05,2]
[422674226,1779233446000,-500.0,8.219e-05,2]
[422674217,1779233446000,-500.0,8.219e-05,2]
[422674204,1779233446000,-500.0,8.219e-05,2]
[422674208,1779233446000,-500.0,8.219e-05,2]
[422674202,1779233446000,-500.0,8.219e-05,2]
[422674184,1779233446000,-557.288,8.219e-05,2]
[422674197,1779233446000,-2789.405408,8.219e-05,2]
[422674182,1779233446000,-2355.65526809,8.218e-05,2]
[422674181,1779233446000,-3744.22915516,8.069e-05,2]
[422674187,1779233446000,-1227.7086,8.219e-05,2]
[422674188,1779233446000,-1071.5598,8.219e-05,2]
[422674185,1779233446000,-1531.497,8.219e-05,2]
[422674220,1779233446000,-500.0,8.219e-05,2]
[422674183,1779233446000,-500.0,8.219e-05,2]
[422674186,1779233446000,-1750.499,8.219e-05,2]
[422674189,1779233446000,-278.788202,8.219e-05,2]
[422674191,1779233446000,-500.0,8.219e-05,2]
[422674199,1779233446000,-500.0,8.219e-05,2]
[422674190,1779233446000,-469.064605,8.219e-05,2]
[422674193,1779233446000,-500.0,8.219e-05,2]
[422674194,1779233446000,-500.0,8.219e-05,2]
[422674192,1779233446000,-500.0,8.219e-05,2]
[422674196,1779233446000,-500.0,8.219e-05,2]
[422674195,1779233446000,-500.0,8.219e-05,2]
[422674200,1779233446000,-654.72,8.219e-05,2]
[422674198,1779233446000,-500.0,8.219e-05,2]
[422674201,1779233446000,-500.0,8.219e-05,2]
[422674221,1779233446000,-131.55777027,8.219e-05,2]
[422674213,1779233446000,-500.0,8.219e-05,2]
[422674224,1779233446000,-500.0,8.219e-05,2]
[422674252,1779233446000,-500.0,8.219e-05,2]
[422674249,1779233446000,-500.0,8.219e-05,2]
[422674255,1779233446000,-500.0,8.219e-05,2]
[422674253,1779233446000,-500.0,8.219e-05,2]
[422674261,1779233446000,-500.0,8.219e-05,2]
[422674259,1779233446000,-500.0,8.219e-05,2]
[422674262,1779233446000,-85.13759053,8.219e-05,2]
[422674263,1779233446000,-414.86240947,8.219e-05,2]
[422674246,1779233446000,-500.08159205,8.219e-05,2]
[422674270,1779233446000,-500.0,8.219e-05,2]
[422674266,1779233446000,-500.0,8.219e-05,2]
[422674268,1779233446000,-508.63,8.219e-05,2]
[422674265,1779233446000,-500.0,8.219e-05,2]
[422674269,1779233446000,-500.0,8.219e-05,2]
[422674267,1779233446000,-500.0,8.219e-05,2]
[422674272,1779233446000,-1161.31,8.219e-05,2]
[422674271,1779233446000,-514.18121957,8.219e-05,2]
[422674223,1779233446000,-500.0,8.219e-05,2]
[422674260,1779233446000,-500.0,8.219e-05,2]
[422674250,1779233446000,-507.27812998,8.219e-05,2]
[422674264,1779233446000,-733.83,8.219e-05,2]
[422674248,1779233446000,-500.0,8.219e-05,2]
[422674225,1779233446000,-541.67,8.219e-05,2]
[422674256,1779233446000,-500.0,8.219e-05,2]
[422674222,1779233446000,-368.44222973,8.219e-05,2]
[422674231,1779233446000,-500.0,8.219e-05,2]
[422674228,1779233446000,-500.0,8.219e-05,2]
[422674233,1779233446000,-500.0,8.219e-05,2]
[422674237,1779233446000,-500.0,8.219e-05,2]
[422674244,1779233446000,-500.0,8.219e-05,2]
[422674241,1779233446000,-500.0,8.219e-05,2]
[422674229,1779233446000,-500.0,8.219e-05,2]
[422674235,1779233446000,-500.0,8.219e-05,2]
[422674245,1779233446000,-500.0,8.219e-05,2]
[422674243,1779233446000,-507.06162581,8.219e-05,2]
[422674242,1779233446000,-610.7,8.219e-05,2]
[422674258,1779233446000,-500.0,8.219e-05,2]
[422674247,1779233446000,-500.0,8.219e-05,2]
[422674251,1779233446000,-500.0,8.219e-05,2]
[422674239,1779233446000,-500.0,8.219e-05,2]
[422674254,1779233446000,-500.0,8.219e-05,2]
[422674257,1779233446000,-184.65214051,8.219e-05,2]
[422674319,1779233447000,-500.0,8.219e-05,2]
[422674321,1779233447000,-500.0,8.219e-05,2]
[422674317,1779233447000,-500.0,8.219e-05,2]
[422674318,1779233447000,-517.89441637,8.219e-05,2]
[422674305,1779233447000,-209.81025477,8.219e-05,2]
[422674304,1779233447000,-500.0,8.219e-05,2]
[422674303,1779233447000,-500.0,8.219e-05,2]
[422674302,1779233447000,-500.0,8.219e-05,2]
[422674309,1779233447000,-518.69749337,8.219e-05,2]
[422674301,1779233447000,-500.0,8.219e-05,2]
[422674306,1779233447000,-292.27660189,8.219e-05,2]
[422674311,1779233447000,-568.0,8.219e-05,2]
[422674325,1779233447000,-500.0,8.219e-05,2]
[422674313,1779233447000,-500.0,8.219e-05,2]
[422674310,1779233447000,-495.13695176,8.219e-05,2]
[422674315,1779233447000,-489.68848654,8.219e-05,2]
[422674316,1779233447000,-1919.94,8.219e-05,2]
[422674314,1779233447000,-559.38,8.219e-05,2]
[422674312,1779233447000,-500.0,8.219e-05,2]
[422674322,1779233447000,-831.04,8.219e-05,2]
[422674326,1779233447000,-500.0,8.219e-05,2]
[422674324,1779233447000,-500.0,8.219e-05,2]
[422674323,1779233447000,-562.78637355,8.219e-05,2]
[422674331,1779233447000,-500.0,8.219e-05,2]
[422674299,1779233447000,-500.0,8.219e-05,2]
[422674320,1779233447000,-500.0,8.219e-05,2]
[422674300,1779233447000,-500.0,8.219e-05,2]
[422674279,1779233447000,-1060.82719296,8.219e-05,2]
[422674307,1779233447000,-500.0,8.219e-05,2]
[422674280,1779233447000,-500.0,8.219e-05,2]
[422674281,1779233447000,-500.0,8.219e-05,2]
[422674282,1779233447000,-500.0,8.219e-05,2]
[422674275,1779233447000,-500.0,8.219e-05,2]
[422674330,1779233447000,-500.0,8.219e-05,2]
[422674277,1779233447000,-500.0,8.219e-05,2]
[422674273,1779233447000,-500.0,8.219e-05,2]
[422674276,1779233447000,-500.0,8.219e-05,2]
[422674274,1779233447000,-500.0,8.219e-05,2]
[422674278,1779233447000,-367.79280704,8.219e-05,2]
[422674283,1779233447000,-500.0,8.219e-05,2]
[422674286,1779233447000,-500.0,8.219e-05,2]
[422674308,1779233447000,-500.0,8.219e-05,2]
[422674287,1779233447000,-500.0,8.219e-05,2]
[422674284,1779233447000,-500.0,8.219e-05,2]
[422674289,1779233447000,-500.16388826,8.219e-05,2]
[422674288,1779233447000,-500.0,8.219e-05,2]
[422674292,1779233447000,-500.0,8.219e-05,2]
[422674293,1779233447000,-500.0,8.219e-05,2]
[422674290,1779233447000,-500.0,8.219e-05,2]
[422674291,1779233447000,-500.0,8.219e-05,2]
[422674296,1779233447000,-500.0,8.219e-05,2]
[422674294,1779233447000,-359.69954796,8.219e-05,2]
[422674295,1779233447000,-500.0,8.219e-05,2]
[422674297,1779233447000,-243.08847433,8.219e-05,2]
[422674298,1779233447000,-256.91152567,8.219e-05,2]
[422674285,1779233447000,-580.34,8.219e-05,2]
[422674333,1779233447000,-535.46741483,8.219e-05,2]
[422674382,1779233447000,-2773.8,8.219e-05,2]
[422674329,1779233447000,-500.0,8.219e-05,2]
[422674361,1779233447000,-500.0,8.219e-05,2]
[422674374,1779233447000,-500.0,8.219e-05,2]
[422674372,1779233447000,-500.0,8.219e-05,2]
[422674366,1779233447000,-500.0,8.219e-05,2]
[422674367,1779233447000,-500.0,8.219e-05,2]
[422674373,1779233447000,-500.0,8.219e-05,2]
[422674365,1779233447000,-500.0,8.219e-05,2]
[422674363,1779233447000,-500.0,8.219e-05,2]
[422674369,1779233447000,-500.0,8.219e-05,2]
[422674364,1779233447000,-500.0,8.219e-05,2]
[422674370,1779233447000,-500.0,8.219e-05,2]
[422674368,1779233447000,-415.40959912,8.219e-05,2]
[422674362,1779233447000,-500.0,8.219e-05,2]
[422674371,1779233447000,-500.0,8.219e-05,2]
[422674377,1779233447000,-500.0,8.219e-05,2]
[422674378,1779233447000,-500.0,8.219e-05,2]
[422674387,1779233447000,-500.0,8.219e-05,2]
[422674388,1779233447000,-500.0,8.219e-05,2]
[422674386,1779233447000,-500.0,8.219e-05,2]
[422674380,1779233447000,-500.0,8.219e-05,2]
[422674379,1779233447000,-776.02,8.219e-05,2]
[422674381,1779233447000,-500.0,8.219e-05,2]
[422674385,1779233447000,-500.0,8.219e-05,2]
[422674384,1779233447000,-500.0,8.219e-05,2]
[422674383,1779233447000,-694.16,8.219e-05,2]
[422674327,1779233447000,-663.77,8.219e-05,2]
[422674376,1779233447000,-686.98,8.219e-05,2]
[422674356,1779233447000,-500.0,8.219e-05,2]
[422674375,1779233447000,-500.0,8.219e-05,2]
[422674357,1779233447000,-618.93,8.219e-05,2]
[422674355,1779233447000,-553.76718099,8.219e-05,2]
[422674334,1779233447000,-461.60114167,8.219e-05,2]
[422674332,1779233447000,-500.0,8.219e-05,2]
[422674328,1779233447000,-1504.23,8.219e-05,2]
[422674337,1779233447000,-500.0,8.219e-05,2]
[422674347,1779233447000,-500.0,8.219e-05,2]
[422674346,1779233447000,-648.74,8.219e-05,2]
[422674335,1779233447000,-500.0,8.219e-05,2]
[422674338,1779233447000,-500.0,8.219e-05,2]
[422674343,1779233447000,-548.00861986,8.219e-05,2]
[422674339,1779233447000,-500.0,8.219e-05,2]
[422674341,1779233447000,-500.0,8.219e-05,2]
[422674345,1779233447000,-500.0,8.219e-05,2]
[422674336,1779233447000,-500.0,8.219e-05,2]
[422674354,1779233447000,-500.0,8.219e-05,2]
[422674342,1779233447000,-500.0,8.219e-05,2]
[422674344,1779233447000,-500.0,8.219e-05,2]
[422674348,1779233447000,-500.0,8.219e-05,2]
[422674349,1779233447000,-500.0,8.219e-05,2]
[422674351,1779233447000,-500.0,8.219e-05,2]
[422674350,1779233447000,-500.0,8.219e-05,2]
[422674358,1779233447000,-500.0,8.219e-05,2]
[422674352,1779233447000,-500.0,8.219e-05,2]
[422674359,1779233447000,-500.0,8.219e-05,2]
[422674360,1779233447000,-500.0,8.219e-05,2]
[422674353,1779233447000,-500.0,8.219e-05,2]
[422674340,1779233447000,-500.0,8.219e-05,2]
[422674411,1779233448000,-2077.43,8.219e-05,2]
[422674410,1779233448000,-507.12,8.219e-05,2]
[422674414,1779233448000,-500.0,8.219e-05,2]
[422674412,1779233448000,-507.40166816,8.219e-05,2]
[422674407,1779233448000,-500.0,8.219e-05,2]
[422674408,1779233448000,-500.0,8.219e-05,2]
[422674409,1779233448000,-500.92572126,8.219e-05,2]
[422674417,1779233448000,-500.0,8.219e-05,2]
[422674415,1779233448000,-500.0,8.219e-05,2]
[422674425,1779233448000,-500.0,8.219e-05,2]
[422674426,1779233448000,-3427.4,8.219e-05,2]
[422674419,1779233448000,-680.01,8.219e-05,2]
[422674416,1779233448000,-542.08900102,8.219e-05,2]
[422674403,1779233448000,-500.0,8.219e-05,2]
[422674413,1779233448000,-500.0,8.219e-05,2]
[422674406,1779233448000,-500.0,8.219e-05,2]
[422674392,1779233448000,-500.0,8.219e-05,2]
[422674402,1779233448000,-500.0,8.219e-05,2]
[422674418,1779233448000,-500.0,8.219e-05,2]
[422674390,1779233448000,-920.13,8.219e-05,2]
[422674391,1779233448000,-500.0,8.219e-05,2]
[422674401,1779233448000,-500.0,8.219e-05,2]
[422674400,1779233448000,-1914.05,8.219e-05,2]
[422674394,1779233448000,-500.0,8.219e-05,2]
[422674405,1779233448000,-286.83275413,8.219e-05,2]
[422674393,1779233448000,-500.0,8.219e-05,2]
[422674395,1779233448000,-500.0,8.219e-05,2]
[422674399,1779233448000,-500.0,8.219e-05,2]
[422674397,1779233448000,-500.0,8.219e-05,2]
[422674396,1779233448000,-637.72,8.219e-05,2]
[422674398,1779233448000,-1386.22,8.219e-05,2]
[422674404,1779233448000,-213.16724587,8.219e-05,2]
[422674389,1779233448000,-500.0,8.219e-05,2]
[422674422,1779233448000,-500.0,8.219e-05,2]
[422674438,1779233448000,-500.0,8.219e-05,2]
[422674424,1779233448000,-500.0,8.219e-05,2]
[422674449,1779233448000,-500.0,8.219e-05,2]
[422674442,1779233448000,-500.0,8.219e-05,2]
[422674453,1779233448000,-500.0,8.219e-05,2]
[422674444,1779233448000,-610.7,8.219e-05,2]
[422674450,1779233448000,-500.0,8.219e-05,2]
[422674452,1779233448000,-500.0,8.219e-05,2]
[422674445,1779233448000,-500.0,8.219e-05,2]
[422674451,1779233448000,-500.0,8.219e-05,2]
[422674420,1779233448000,-500.0,8.219e-05,2]
[422674448,1779233448000,-500.0,8.219e-05,2]
[422674454,1779233448000,-3915.89,8.219e-05,2]
[422674456,1779233448000,-637.79,8.219e-05,2]
[422674457,1779233448000,-339.40159126,8.219e-05,2]
[422674455,1779233448000,-500.0,8.219e-05,2]
[422674447,1779233448000,-500.0,8.219e-05,2]
[422674441,1779233448000,-500.0,8.219e-05,2]
[422674446,1779233448000,-500.0,8.219e-05,2]
[422674440,1779233448000,-933.42,8.219e-05,2]
[422674443,1779233448000,-500.0,8.219e-05,2]
[422674421,1779233448000,-500.0,8.219e-05,2]
[422674423,1779233448000,-500.0,8.219e-05,2]
[422674428,1779233448000,-500.0,8.219e-05,2]
[422674431,1779233448000,-501.21069754,8.219e-05,2]
[422674435,1779233448000,-500.0,8.219e-05,2]
[422674429,1779233448000,-500.0,8.219e-05,2]
[422674427,1779233448000,-996.03,8.219e-05,2]
[422674433,1779233448000,-500.0,8.219e-05,2]
[422674432,1779233448000,-500.0,8.219e-05,2]
[422674436,1779233448000,-500.0,8.219e-05,2]
[422674434,1779233448000,-500.0,8.219e-05,2]
[422674439,1779233448000,-500.0,8.219e-05,2]
[422674430,1779233448000,-500.0,8.219e-05,2]
[422674437,1779233448000,-686.64,8.219e-05,2]
[422674458,1779233493000,-300.0,8.218e-05,2]
[422674459,1779233516000,-500.0,8.217e-05,2]
[422674615,1779234638000,-500.0,7.968e-05,2]
[422674603,1779234638000,-500.0,7.968e-05,2]
[422674609,1779234638000,-500.0,7.968e-05,2]
[422674619,1779234638000,-500.0,7.968e-05,2]
[422674607,1779234638000,-500.0,7.968e-05,2]
[422674605,1779234638000,-500.0,7.968e-05,2]
[422674620,1779234638000,-500.0,7.968e-05,2]
[422674617,1779234638000,-500.0,7.968e-05,2]
[422674611,1779234638000,-500.0,7.968e-05,2]
[422674601,1779234638000,-500.0,7.968e-05,2]
[422674594,1779234638000,-15878.54885187,7.968e-05,2]
[422674590,1779234638000,-300.0,7.967e-05,2]
[422674588,1779234638000,-2076.32220262,7.808e-05,2]
[422674597,1779234638000,-500.0,7.968e-05,2]
[422674592,1779234638000,-1200.0,7.967e-05,2]
[422674599,1779234638000,-500.0,7.968e-05,2]
[422674595,1779234638000,-500.0,7.968e-05,2]
[422674585,1779234638000,-500.0,7.729e-05,2]
[422674586,1779234638000,-506.45340009,7.769e-05,2]
[422674622,1779234638000,-500.0,7.968e-05,2]
[422674613,1779234638000,-500.0,7.968e-05,2]
[422674624,1779234638000,-500.0,7.968e-05,2]
[422674667,1779234638000,-1727.08258614,7.969e-05,2]
[422674635,1779234638000,-500.0,7.968e-05,2]
[422674626,1779234638000,-500.0,7.968e-05,2]
[422674671,1779234638000,-33826.79481082,7.969e-05,2]
[422674665,1779234638000,-95091.45917595,7.969e-05,2]
[422674660,1779234638000,-500.0,7.968e-05,2]
[422674663,1779234638000,-500.0,7.968e-05,2]
[422674656,1779234638000,-500.0,7.968e-05,2]
[422674652,1779234638000,-154.74520699,7.968e-05,2]
[422674654,1779234638000,-500.0,7.968e-05,2]
[422674658,1779234638000,-500.0,7.968e-05,2]
[422674650,1779234638000,-500.0,7.968e-05,2]
[422674661,1779234638000,-500.0,7.968e-05,2]
[422674646,1779234638000,-500.0,7.968e-05,2]
[422674644,1779234638000,-500.0,7.968e-05,2]
[422674641,1779234638000,-500.0,7.968e-05,2]
[422674637,1779234638000,-393.53343194,7.968e-05,2]
[422674639,1779234638000,-292.03314039,7.968e-05,2]
[422674628,1779234638000,-500.0,7.968e-05,2]
[422674634,1779234638000,-500.0,7.968e-05,2]
[422674630,1779234638000,-500.0,7.968e-05,2]
[422674632,1779234638000,-559.67486188,7.968e-05,2]
[422674648,1779234638000,-486.56423027,7.968e-05,2]
[422674929,1779234640000,-1000.0,7.969e-05,2]
[422674921,1779234640000,-744.24204284,7.969e-05,2]
[422675294,1779234643000,-8349.93678142,7.969e-05,2]
[422675291,1779234643000,-2775.00000131,7.969e-05,2]
[422675288,1779234643000,-841.45616995,7.969e-05,2]
[422675477,1779234646000,-2789.405408,8.219e-05,2]
[422675461,1779234646000,-3885.0,7.969e-05,2]
[422675462,1779234646000,-96548.80046671,7.969e-05,2]
[422675463,1779234646000,-152.0,8.004e-05,7]
[422675464,1779234646000,-152.0,8.004e-05,7]
[422675465,1779234646000,-152.0,8.009e-05,7]
[422675467,1779234646000,-485.143,8.045e-05,2]
[422675479,1779234646000,-500.0,8.219e-05,2]
[422675478,1779234646000,-10187.819956,8.219e-05,2]
[422675468,1779234646000,-742.0,8.045e-05,2]
[422675466,1779234646000,-443.0,8.045e-05,2]
[422675470,1779234646000,-177.76,8.1e-05,2]
[422675469,1779234646000,-185.0,8.045e-05,2]
[422675472,1779234646000,-500.0,8.219e-05,2]
[422675473,1779234646000,-500.0,8.219e-05,2]
[422675475,1779234646000,-500.0,8.219e-05,2]
[422675474,1779234646000,-189.41898783,8.219e-05,2]
[422675471,1779234646000,-152.0,8.218e-05,2]
[422675476,1779234646000,-1290.483966,8.219e-05,2]
[422675523,1779234647000,-500.0,8.219e-05,2]
[422675530,1779234647000,-592.85,8.219e-05,2]
[422675521,1779234647000,-500.0,8.219e-05,2]
[422675519,1779234647000,-644.42,8.219e-05,2]
[422675509,1779234647000,-500.0,8.219e-05,2]
[422675514,1779234647000,-500.0,8.219e-05,2]
[422675512,1779234647000,-954.52,8.219e-05,2]
[422675531,1779234647000,-500.0,8.219e-05,2]
[422675511,1779234647000,-500.0,8.219e-05,2]
[422675515,1779234647000,-500.0,8.219e-05,2]
[422675508,1779234647000,-500.0,8.219e-05,2]
[422675520,1779234647000,-500.0,8.219e-05,2]
[422675525,1779234647000,-500.0,8.219e-05,2]
[422675526,1779234647000,-500.0,8.219e-05,2]
[422675522,1779234647000,-500.0,8.219e-05,2]
[422675529,1779234647000,-500.0,8.219e-05,2]
[422675532,1779234647000,-500.0,8.219e-05,2]
[422675527,1779234647000,-500.0,8.219e-05,2]
[422675524,1779234647000,-611.21,8.219e-05,2]
[422675533,1779234647000,-624.5,8.219e-05,2]
[422675535,1779234647000,-500.0,8.219e-05,2]
[422675537,1779234647000,-500.0,8.219e-05,2]
[422675536,1779234647000,-817.36,8.219e-05,2]
[422675534,1779234647000,-500.0,8.219e-05,2]
[422675538,1779234647000,-500.0,8.219e-05,2]
[422675540,1779234647000,-500.0,8.219e-05,2]
[422675513,1779234647000,-500.0,8.219e-05,2]
[422675528,1779234647000,-500.0,8.219e-05,2]
[422675507,1779234647000,-651.68,8.219e-05,2]
[422675481,1779234647000,-500.0,8.219e-05,2]
[422675518,1779234647000,-500.0,8.219e-05,2]
[422675544,1779234647000,-500.0,8.219e-05,2]
[422675480,1779234647000,-539.33979203,8.219e-05,2]
[422675491,1779234647000,-500.0,8.219e-05,2]
[422675492,1779234647000,-500.0,8.219e-05,2]
[422675483,1779234647000,-500.0,8.219e-05,2]
[422675484,1779234647000,-500.0,8.219e-05,2]
[422675482,1779234647000,-500.0,8.219e-05,2]
[422675485,1779234647000,-500.0,8.219e-05,2]
[422675487,1779234647000,-611.15,8.219e-05,2]
[422675490,1779234647000,-500.0,8.219e-05,2]
[422675488,1779234647000,-500.0,8.219e-05,2]
[422675486,1779234647000,-743.68,8.219e-05,2]
[422675489,1779234647000,-500.0,8.219e-05,2]
[422675505,1779234647000,-500.0,8.219e-05,2]
[422675493,1779234647000,-500.0,8.219e-05,2]
[422675497,1779234647000,-500.0,8.219e-05,2]
[422675499,1779234647000,-500.0,8.219e-05,2]
[422675496,1779234647000,-166.43696104,8.219e-05,2]
[422675498,1779234647000,-500.0,8.219e-05,2]
[422675501,1779234647000,-500.0,8.219e-05,2]
[422675502,1779234647000,-1834.3,8.219e-05,2]
[422675504,1779234647000,-500.0,8.219e-05,2]
[422675494,1779234647000,-500.0,8.219e-05,2]
[422675500,1779234647000,-500.0,8.219e-05,2]
[422675503,1779234647000,-500.0,8.219e-05,2]
[422675506,1779234647000,-500.0,8.219e-05,2]
[422675516,1779234647000,-500.0,8.219e-05,2]
[422675517,1779234647000,-585.25,8.219e-05,2]
[422675495,1779234647000,-500.0,8.219e-05,2]
[422675541,1779234647000,-404.13267467,8.219e-05,2]
[422675510,1779234647000,-500.0,8.219e-05,2]
[422675542,1779234647000,-1000.0,8.219e-05,2]
[422675573,1779234647000,-567.94,8.219e-05,2]
[422675579,1779234647000,-500.0,8.219e-05,2]
[422675569,1779234647000,-920.21,8.219e-05,2]
[422675574,1779234647000,-500.0,8.219e-05,2]
[422675577,1779234647000,-500.0,8.219e-05,2]
[422675587,1779234647000,-500.0,8.219e-05,2]
[422675590,1779234647000,-500.0,8.219e-05,2]
[422675591,1779234647000,-500.0,8.219e-05,2]